[Event "*** Titled Tuesday Blitz"]
[Site "Chess.com"]
[Date "2019.11.05"]
[Round "8"]
[White "MFBerna"]
[Black "Nazar-Nazar"]
[Result "1/2-1/2"]
[WhiteElo "2320"]
[BlackElo "2491"]
[TimeControl "180+2"]
[EndTime "14:53:41 PST"]
[Termination "Game drawn by repetition"]

1. e4 {[%clk 0:03:01.9]} 1... c6 {[%clk 0:02:58.7]} 2. Nf3 {[%clk 0:02:59.9]}
2... d5 {[%clk 0:02:59.7]} 3. Nc3 {[%clk 0:03:00.5]} 3... Bg4 {[%clk 0:03:00]}
4. h3 {[%clk 0:03:00.9]} 4... Bxf3 {[%clk 0:03:00.8]} 5. Qxf3 {[%clk 0:03:02.3]}
5... Nf6 {[%clk 0:02:59.3]} 6. exd5 {[%clk 0:03:00]} 6... cxd5 {[%clk
0:02:59.8]} 7. d4 {[%clk 0:03:01.1]} 7... Nc6 {[%clk 0:03:00.7]} 8. Bb5 {[%clk
0:03:01.5]} 8... Rc8 {[%clk 0:03:01]} 9. O-O {[%clk 0:03:02]} 9... e6 {[%clk
0:03:02.1]} 10. Bg5 {[%clk 0:03:02.6]} 10... Be7 {[%clk 0:03:03.1]} 11. Rfe1
{[%clk 0:03:03.5]} 11... O-O {[%clk 0:03:02.2]} 12. Bxc6 {[%clk 0:02:56]} 12...
Rxc6 {[%clk 0:03:04.1]} 13. Re2 {[%clk 0:02:52]} 13... Qb6 {[%clk 0:02:50.4]}
14. Na4 {[%clk 0:02:38.3]} 14... Qxd4 {[%clk 0:02:48.8]} 15. Nc3 {[%clk
0:02:38]} 15... Qb4 {[%clk 0:02:37.2]} 16. Rae1 {[%clk 0:02:34.1]} 16... Qxb2
{[%clk 0:02:27.8]} 17. Nd1 {[%clk 0:02:31.4]} 17... Qa3 {[%clk 0:02:10.3]} 18.
Re3 {[%clk 0:02:31.5]} 18... Qxa2 {[%clk 0:02:05.2]} 19. Re5 {[%clk 0:02:24.3]}
19... Qa3 {[%clk 0:01:52]} 20. Ne3 {[%clk 0:02:21.4]} 20... d4 {[%clk
0:01:04.7]} 21. Nf5 {[%clk 0:02:21.3]} 21... exf5 {[%clk 0:01:04.4]} 22. Rxe7
{[%clk 0:02:21.3]} 22... Qxf3 {[%clk 0:01:03.7]} 23. gxf3 {[%clk 0:02:23.2]}
23... Rxc2 {[%clk 0:00:23.1]} 24. Bxf6 {[%clk 0:02:23.3]} 24... gxf6 {[%clk
0:00:24.3]} 25. Rxb7 {[%clk 0:02:24.5]} 25... Ra2 {[%clk 0:00:21.1]} 26. Rd7
{[%clk 0:02:21.6]} 26... Ra4 {[%clk 0:00:20.8]} 27. Ree7 {[%clk 0:02:13.2]}
27... Kg7 {[%clk 0:00:19.7]} 28. Kg2 {[%clk 0:02:13.5]} 28... Kg6 {[%clk
0:00:20.6]} 29. Kg3 {[%clk 0:02:14.5]} 29... Kg5 {[%clk 0:00:21]} 30. h4+ {[%clk
0:02:14.7]} 30... Kg6 {[%clk 0:00:21.9]} 31. Kf4 {[%clk 0:02:11.6]} 31... d3+
{[%clk 0:00:22]} 32. Ke3 {[%clk 0:02:13.5]} 32... Rxh4 {[%clk 0:00:22.5]} 33.
Rxa7 {[%clk 0:02:10.6]} 33... Rh3 {[%clk 0:00:22.5]} 34. Rad7 {[%clk 0:02:07.5]}
34... Kg5 {[%clk 0:00:21.3]} 35. Rxf7 {[%clk 0:02:05]} 35... Rxf7 {[%clk
0:00:22]} 36. Rxf7 {[%clk 0:02:06.7]} 36... f4+ {[%clk 0:00:21]} 37. Kxd3 {[%clk
0:02:05.1]} 37... Rxf3+ {[%clk 0:00:22]} 38. Ke2 {[%clk 0:02:07]} 38... Rh3
{[%clk 0:00:22.5]} 39. Rg7+ {[%clk 0:02:07.5]} 39... Kf5 {[%clk 0:00:23.1]} 40.
Ra7 {[%clk 0:02:06.3]} 40... h5 {[%clk 0:00:20.1]} 41. Kf1 {[%clk 0:01:59.8]}
41... f3 {[%clk 0:00:16.1]} 42. Ra5+ {[%clk 0:01:56.9]} 42... Kg6 {[%clk
0:00:17.2]} 43. Kg1 {[%clk 0:01:53.7]} 43... Rh4 {[%clk 0:00:18.3]} 44. Ra3
{[%clk 0:01:52.3]} 44... Rh3 {[%clk 0:00:19.3]} 45. Ra4 {[%clk 0:01:49.5]} 45...
Kg5 {[%clk 0:00:20.3]} 46. Ra8 {[%clk 0:01:47.6]} 46... Rh4 {[%clk 0:00:17.9]}
47. Ra3 {[%clk 0:01:44.1]} 47... Rh3 {[%clk 0:00:17.7]} 48. Ra8 {[%clk
0:01:42.5]} 48... Kf5 {[%clk 0:00:16.2]} 49. Ra4 {[%clk 0:01:37.9]} 49... Kg5
{[%clk 0:00:16.1]} 50. Ra8 {[%clk 0:01:38.7]} 1/2-1/2

[Event "*** Titled Tuesday Blitz"]
[Site "Chess.com"]
[Date "2019.11.05"]
[Round "8"]
[White "DinaBelenkaya"]
[Black "LimeInTheCoconut"]
[Result "1-0"]
[WhiteElo "2345"]
[BlackElo "2458"]
[TimeControl "180+2"]
[EndTime "14:53:44 PST"]
[Termination "DinaBelenkaya won by resignation"]

1. e4 {[%clk 0:02:56.8]} 1... c5 {[%clk 0:03:00.4]} 2. Nc3 {[%clk 0:02:55.7]}
2... Nc6 {[%clk 0:03:00.8]} 3. g3 {[%clk 0:02:55.1]} 3... g6 {[%clk 0:02:54]} 4.
Bg2 {[%clk 0:02:56]} 4... Bg7 {[%clk 0:02:55.6]} 5. d3 {[%clk 0:02:55.8]} 5...
d6 {[%clk 0:02:54.6]} 6. Nge2 {[%clk 0:02:56.3]} 6... e6 {[%clk 0:02:53.5]} 7.
O-O {[%clk 0:02:56.8]} 7... Nge7 {[%clk 0:02:54.3]} 8. Bg5 {[%clk 0:02:57.3]}
8... h6 {[%clk 0:02:55]} 9. Be3 {[%clk 0:02:57.8]} 9... Nd4 {[%clk 0:02:54.5]}
10. Qd2 {[%clk 0:02:55]} 10... Nec6 {[%clk 0:02:45.6]} 11. Rae1 {[%clk
0:02:46.5]} 11... h5 {[%clk 0:02:32]} 12. Nd1 {[%clk 0:02:45.4]} 12... Nxe2+
{[%clk 0:02:23.2]} 13. Rxe2 {[%clk 0:02:46.1]} 13... h4 {[%clk 0:02:24.8]} 14.
c3 {[%clk 0:02:46]} 14... hxg3 {[%clk 0:02:18.8]} 15. fxg3 {[%clk 0:02:46.7]}
15... Ne5 {[%clk 0:02:05.6]} 16. Ref2 {[%clk 0:02:44.8]} 16... f6 {[%clk
0:02:00.7]} 17. h3 {[%clk 0:02:44.6]} 17... Qe7 {[%clk 0:01:53.3]} 18. Qe2
{[%clk 0:02:43.4]} 18... Bd7 {[%clk 0:01:23.7]} 19. d4 {[%clk 0:02:39.9]} 19...
cxd4 {[%clk 0:01:25]} 20. cxd4 {[%clk 0:02:40.9]} 20... Nc6 {[%clk 0:01:26.1]}
21. Nc3 {[%clk 0:02:41.9]} 21... O-O-O {[%clk 0:01:21.8]} 22. d5 {[%clk
0:02:42.5]} 22... Ne5 {[%clk 0:01:17]} 23. Bxa7 {[%clk 0:02:39.8]} 23... f5
{[%clk 0:01:10.3]} 24. Rc1 {[%clk 0:02:40.5]} 24... Bh6 {[%clk 0:01:01.9]} 25.
Rc2 {[%clk 0:02:14.2]} 25... Rdf8 {[%clk 0:00:55.6]} 26. dxe6 {[%clk 0:02:04.6]}
26... Bc6 {[%clk 0:00:47.2]} 27. exf5 {[%clk 0:02:00.7]} 27... Rxf5 {[%clk
0:00:45.6]} 28. Nb5 {[%clk 0:01:58.9]} 28... Rxf2 {[%clk 0:00:35.6]} 29. Bxf2
{[%clk 0:01:57.6]} 29... Qxe6 {[%clk 0:00:20.8]} 30. Na7+ {[%clk 0:01:36.2]}
30... Kd7 {[%clk 0:00:21.8]} 31. Nxc6 {[%clk 0:01:35.9]} 31... bxc6 {[%clk
0:00:21.6]} 32. Bxc6+ {[%clk 0:01:25]} 32... Ke7 {[%clk 0:00:21.1]} 33. Bg2
{[%clk 0:01:09.6]} 33... Qxa2 {[%clk 0:00:20.5]} 34. Rc7+ {[%clk 0:01:08.9]}
34... Kd8 {[%clk 0:00:21.2]} 35. Qc2 {[%clk 0:01:02.4]} 35... Qa6 {[%clk
0:00:16.5]} 36. Bb7 {[%clk 0:00:57.8]} 36... Qd3 {[%clk 0:00:03.6]} 37. Rc8+
{[%clk 0:00:57.8]} 37... Kd7 {[%clk 0:00:04.5]} 38. Qxd3 {[%clk 0:00:52.9]}
38... Nxd3 {[%clk 0:00:06.4]} 39. Rxh8 {[%clk 0:00:53.2]} 1-0

[Event "*** Titled Tuesday Blitz"]
[Site "Chess.com"]
[Date "2019.11.05"]
[Round "8"]
[White "tteshan"]
[Black "Galileo22"]
[Result "1-0"]
[WhiteElo "2314"]
[BlackElo "2404"]
[TimeControl "180+2"]
[EndTime "14:53:47 PST"]
[Termination "tteshan won by resignation"]

1. d4 {[%clk 0:02:53.7]} 1... f5 {[%clk 0:02:57.9]} 2. c4 {[%clk 0:02:53.8]}
2... Nf6 {[%clk 0:02:57]} 3. Nc3 {[%clk 0:02:53.7]} 3... e6 {[%clk 0:02:53.7]}
4. g3 {[%clk 0:02:54.2]} 4... g6 {[%clk 0:02:53.2]} 5. Bg2 {[%clk 0:02:55.1]}
5... Bg7 {[%clk 0:02:54.8]} 6. h4 {[%clk 0:02:55.8]} 6... O-O {[%clk 0:02:37.2]}
7. Bg5 {[%clk 0:02:46.2]} 7... h6 {[%clk 0:02:31.4]} 8. Bf4 {[%clk 0:02:47]}
8... d6 {[%clk 0:02:23.5]} 9. Qd2 {[%clk 0:02:36.1]} 9... Kh7 {[%clk 0:02:20.3]}
10. Nf3 {[%clk 0:02:32.7]} 10... Ng4 {[%clk 0:01:54.4]} 11. e4 {[%clk
0:01:50.6]} 11... Na6 {[%clk 0:01:31.7]} 12. O-O-O {[%clk 0:01:32.3]} 12... Qe8
{[%clk 0:00:42.1]} 13. e5 {[%clk 0:01:25.3]} 13... c5 {[%clk 0:00:29.5]} 14. Nb5
{[%clk 0:01:16.3]} 14... cxd4 {[%clk 0:00:25.9]} 15. Nxd6 {[%clk 0:01:11.4]}
15... Qa4 {[%clk 0:00:23.9]} 16. Kb1 {[%clk 0:01:06.9]} 16... Bd7 {[%clk
0:00:17.7]} 17. Nxd4 {[%clk 0:01:02.1]} 17... Nxe5 {[%clk 0:00:16.6]} 18. Bxb7
{[%clk 0:00:45.7]} 18... Rab8 {[%clk 0:00:15.2]} 19. b3 {[%clk 0:00:45.3]} 19...
Qa3 {[%clk 0:00:14.1]} 20. Nc2 {[%clk 0:00:44.4]} 20... Qc5 {[%clk 0:00:13]} 21.
Bxa6 {[%clk 0:00:43.6]} 21... Rb6 {[%clk 0:00:10.2]} 22. Bb5 {[%clk 0:00:40.6]}
22... Bxb5 {[%clk 0:00:09.1]} 23. Nxb5 {[%clk 0:00:40.8]} 23... Nf3 {[%clk
0:00:08.3]} 24. Qe3 {[%clk 0:00:36.7]} 24... Qxe3 {[%clk 0:00:08.5]} 25. Bxe3
{[%clk 0:00:37.4]} 25... Ra6 {[%clk 0:00:09.3]} 26. Nb4 {[%clk 0:00:36.2]} 26...
Ra5 {[%clk 0:00:08.4]} 27. Rd7 {[%clk 0:00:31.3]} 27... a6 {[%clk 0:00:08.9]}
28. Nc6 {[%clk 0:00:30.7]} 28... Rxb5 {[%clk 0:00:09.8]} 29. cxb5 {[%clk
0:00:31.3]} 29... axb5 {[%clk 0:00:11.7]} 30. Nd4 {[%clk 0:00:30.3]} 30... Ne5
{[%clk 0:00:11.7]} 31. Rb7 {[%clk 0:00:28.1]} 31... Re8 {[%clk 0:00:12.3]} 32.
Rc1 {[%clk 0:00:27]} 1-0

[Event "*** Titled Tuesday Blitz"]
[Site "Chess.com"]
[Date "2019.11.05"]
[Round "8"]
[White "chito89"]
[Black "TregubovP"]
[Result "1-0"]
[WhiteElo "2755"]
[BlackElo "2568"]
[TimeControl "180+2"]
[EndTime "14:53:50 PST"]
[Termination "chito89 won by resignation"]

1. Nf3 {[%clk 0:03:00.2]} 1... c5 {[%clk 0:03:00.1]} 2. c4 {[%clk 0:03:00.3]}
2... Nc6 {[%clk 0:02:56.8]} 3. Nc3 {[%clk 0:02:58.5]} 3... Nf6 {[%clk
0:02:57.3]} 4. d4 {[%clk 0:02:56.1]} 4... cxd4 {[%clk 0:02:58.3]} 5. Nxd4 {[%clk
0:02:57.6]} 5... Qb6 {[%clk 0:02:59.9]} 6. e3 {[%clk 0:02:56.1]} 6... e6 {[%clk
0:02:53.9]} 7. Be2 {[%clk 0:02:47.3]} 7... Be7 {[%clk 0:02:54.4]} 8. O-O {[%clk
0:02:47.4]} 8... O-O {[%clk 0:02:55.5]} 9. b3 {[%clk 0:02:48.4]} 9... d5 {[%clk
0:02:43.4]} 10. Na4 {[%clk 0:02:41]} 10... Qd8 {[%clk 0:02:30.1]} 11. Bb2 {[%clk
0:02:35.2]} 11... Bd7 {[%clk 0:02:22.5]} 12. cxd5 {[%clk 0:02:34.7]} 12... Nxd5
{[%clk 0:02:21.9]} 13. Rc1 {[%clk 0:02:35.9]} 13... Bf6 {[%clk 0:02:19.4]} 14.
Nc5 {[%clk 0:02:27.5]} 14... Nxd4 {[%clk 0:02:20]} 15. Bxd4 {[%clk 0:02:26.6]}
15... Bc6 {[%clk 0:02:18.2]} 16. Bf3 {[%clk 0:01:56.6]} 16... Rc8 {[%clk
0:02:12.7]} 17. Bxf6 {[%clk 0:01:46.3]} 17... Qxf6 {[%clk 0:01:56.9]} 18. Qd2
{[%clk 0:01:26.6]} 18... Rfd8 {[%clk 0:01:43.5]} 19. Rfd1 {[%clk 0:01:21.1]}
19... Nb6 {[%clk 0:00:38.1]} 20. Qe2 {[%clk 0:01:08.1]} 20... Bxf3 {[%clk
0:00:38.7]} 21. Rxd8+ {[%clk 0:01:07.5]} 21... Rxd8 {[%clk 0:00:28.1]} 22. Qxf3
{[%clk 0:01:08.4]} 22... Qxf3 {[%clk 0:00:28.5]} 23. gxf3 {[%clk 0:01:02.6]}
23... Rd2 {[%clk 0:00:23]} 24. a4 {[%clk 0:00:59]} 24... g5 {[%clk 0:00:23.5]}
25. Ne4 {[%clk 0:00:55.3]} 25... Rb2 {[%clk 0:00:21.7]} 26. Rc7 {[%clk
0:00:55.9]} 26... h6 {[%clk 0:00:17.4]} 27. Rxb7 {[%clk 0:00:47.2]} 27... Nxa4
{[%clk 0:00:15]} 28. Rxa7 {[%clk 0:00:37.6]} 28... Nb6 {[%clk 0:00:13.1]} 29.
Nd6 {[%clk 0:00:29.9]} 29... Rxb3 {[%clk 0:00:05.3]} 30. Nxf7 {[%clk 0:00:29.7]}
30... Kg7 {[%clk 0:00:03.9]} 31. Nxg5+ {[%clk 0:00:29.2]} 31... Kf6 {[%clk
0:00:05.1]} 32. Ne4+ {[%clk 0:00:29.5]} 32... Ke5 {[%clk 0:00:06.4]} 33. Rh7
{[%clk 0:00:25.6]} 33... Nd5 {[%clk 0:00:06.8]} 34. Rxh6 {[%clk 0:00:26]} 1-0

[Event "*** Titled Tuesday Blitz"]
[Site "Chess.com"]
[Date "2019.11.05"]
[Round "8"]
[White "vladimirdamjanovic"]
[Black "SCIM"]
[Result "0-1"]
[WhiteElo "2589"]
[BlackElo "2502"]
[TimeControl "180+2"]
[EndTime "14:53:50 PST"]
[Termination "SCIM won on time"]

1. e4 {[%clk 0:03:01.9]} 1... c5 {[%clk 0:02:59.9]} 2. Nf3 {[%clk 0:03:01.3]}
2... e6 {[%clk 0:03:01.5]} 3. b3 {[%clk 0:03:01.4]} 3... b6 {[%clk 0:03:00.4]}
4. Bb2 {[%clk 0:03:00.8]} 4... Bb7 {[%clk 0:03:01.5]} 5. Nc3 {[%clk 0:03:00.4]}
5... a6 {[%clk 0:03:00.9]} 6. d4 {[%clk 0:02:58]} 6... cxd4 {[%clk 0:02:55.2]}
7. Nxd4 {[%clk 0:02:58.7]} 7... Nf6 {[%clk 0:02:52.7]} 8. e5 {[%clk 0:02:53.1]}
8... Nd5 {[%clk 0:02:49]} 9. Ne4 {[%clk 0:02:21.9]} 9... Qc7 {[%clk 0:02:42.6]}
10. Nd6+ {[%clk 0:01:16.1]} 10... Bxd6 {[%clk 0:02:42]} 11. exd6 {[%clk
0:01:18]} 11... Qxd6 {[%clk 0:02:43.6]} 12. Qd2 {[%clk 0:01:02.4]} 12... O-O
{[%clk 0:02:20.7]} 13. O-O-O {[%clk 0:00:59.2]} 13... Qf4 {[%clk 0:02:18.5]} 14.
Bc4 {[%clk 0:00:43.8]} 14... Qxd2+ {[%clk 0:02:13.9]} 15. Rxd2 {[%clk
0:00:45.7]} 15... Nf4 {[%clk 0:02:09.8]} 16. f3 {[%clk 0:00:43]} 16... b5 {[%clk
0:02:07.9]} 17. Bf1 {[%clk 0:00:40.1]} 17... Nc6 {[%clk 0:02:00]} 18. Ne2 {[%clk
0:00:39.5]} 18... Nxe2+ {[%clk 0:01:57.1]} 19. Bxe2 {[%clk 0:00:41]} 19... d5
{[%clk 0:01:57]} 20. f4 {[%clk 0:00:32.9]} 20... b4 {[%clk 0:01:53]} 21. Bf3
{[%clk 0:00:22.7]} 21... Ne7 {[%clk 0:01:48]} 22. Re1 {[%clk 0:00:17.6]} 22...
a5 {[%clk 0:01:46.1]} 23. a3 {[%clk 0:00:16.1]} 23... Rfc8 {[%clk 0:01:41.6]}
24. axb4 {[%clk 0:00:14.9]} 24... axb4 {[%clk 0:01:41.8]} 25. Kb1 {[%clk
0:00:13.9]} 25... Ba6 {[%clk 0:01:36.9]} 26. g4 {[%clk 0:00:09]} 26... Kf8
{[%clk 0:00:52.6]} 27. f5 {[%clk 0:00:08.8]} 27... exf5 {[%clk 0:00:53]} 28.
Bxg7+ {[%clk 0:00:08.8]} 28... Kxg7 {[%clk 0:00:53.5]} 29. Rxe7 {[%clk
0:00:10.7]} 29... Re8 {[%clk 0:00:50]} 30. Rxe8 {[%clk 0:00:08.4]} 30... Rxe8
{[%clk 0:00:50.4]} 31. gxf5 {[%clk 0:00:09.9]} 31... Re5 {[%clk 0:00:45.4]} 32.
Bxd5 {[%clk 0:00:07.4]} 32... Rxf5 {[%clk 0:00:43.3]} 33. Rd4 {[%clk 0:00:06.1]}
33... h5 {[%clk 0:00:37.2]} 34. h4 {[%clk 0:00:06.1]} 34... Bc8 {[%clk 0:00:35]}
35. Bc6 {[%clk 0:00:03.8]} 35... Rc5 {[%clk 0:00:34.3]} 0-1

[Event "*** Titled Tuesday Blitz"]
[Site "Chess.com"]
[Date "2019.11.05"]
[Round "8"]
[White "Ceejay271"]
[Black "cool4chess"]
[Result "0-1"]
[WhiteElo "2364"]
[BlackElo "2570"]
[TimeControl "180+2"]
[EndTime "14:53:54 PST"]
[Termination "cool4chess won by resignation"]

1. d4 {[%clk 0:03:01.9]} 1... d5 {[%clk 0:02:59.9]} 2. c4 {[%clk 0:03:02.3]}
2... c6 {[%clk 0:03:00]} 3. cxd5 {[%clk 0:02:58.7]} 3... cxd5 {[%clk 0:03:00.3]}
4. Nc3 {[%clk 0:03:00.3]} 4... Nf6 {[%clk 0:03:00.7]} 5. Bf4 {[%clk 0:03:01.7]}
5... Nc6 {[%clk 0:03:01.8]} 6. e3 {[%clk 0:03:00.8]} 6... Bf5 {[%clk 0:03:02.6]}
7. Nf3 {[%clk 0:02:59.9]} 7... e6 {[%clk 0:03:03.1]} 8. Bb5 {[%clk 0:03:00.1]}
8... Bb4 {[%clk 0:03:02.2]} 9. Ne5 {[%clk 0:02:54.1]} 9... Qa5 {[%clk
0:02:30.1]} 10. O-O {[%clk 0:02:08.2]} 10... Bxc3 {[%clk 0:02:18.8]} 11. Bxc6+
{[%clk 0:02:05.9]} 11... bxc6 {[%clk 0:02:19.8]} 12. bxc3 {[%clk 0:02:06.8]}
12... Rc8 {[%clk 0:02:06.7]} 13. c4 {[%clk 0:02:02.2]} 13... O-O {[%clk
0:02:01.7]} 14. c5 {[%clk 0:01:58.7]} 14... Ne4 {[%clk 0:02:01.6]} 15. g4 {[%clk
0:01:34.9]} 15... f6 {[%clk 0:01:18.3]} 16. Nd7 {[%clk 0:01:07.3]} 16... Rf7
{[%clk 0:00:54.7]} 17. gxf5 {[%clk 0:01:07.3]} 17... Rxd7 {[%clk 0:00:49.4]} 18.
fxe6 {[%clk 0:01:08.4]} 18... Re7 {[%clk 0:00:49.9]} 19. f3 {[%clk 0:01:08.2]}
19... Nc3 {[%clk 0:00:40.2]} 20. Qd2 {[%clk 0:01:07.5]} 20... Qa3 {[%clk
0:00:41]} 21. Rfc1 {[%clk 0:00:51.5]} 21... Nb5 {[%clk 0:00:40.3]} 22. Rab1
{[%clk 0:00:33.7]} 22... Rxe6 {[%clk 0:00:35.1]} 23. Rb3 {[%clk 0:00:33.6]}
23... Qa6 {[%clk 0:00:28]} 24. Kf2 {[%clk 0:00:26.5]} 24... Na3 {[%clk
0:00:21.3]} 25. Qe2 {[%clk 0:00:20.8]} 25... Nc4 {[%clk 0:00:21.2]} 26. Rcb1
{[%clk 0:00:19.9]} 26... Rce8 {[%clk 0:00:14.4]} 27. Rb8 {[%clk 0:00:20.3]}
27... g5 {[%clk 0:00:14]} 28. Rxe8+ {[%clk 0:00:20.1]} 28... Rxe8 {[%clk
0:00:14.4]} 29. Bg3 {[%clk 0:00:21.6]} 29... Rxe3 {[%clk 0:00:15.1]} 30. Rb8+
{[%clk 0:00:21]} 30... Kg7 {[%clk 0:00:14.8]} 31. Qc2 {[%clk 0:00:22.5]} 31...
Ra3 {[%clk 0:00:11.8]} 32. Qf5 {[%clk 0:00:20.7]} 32... Rxa2+ {[%clk 0:00:12.1]}
33. Kg1 {[%clk 0:00:22]} 33... Ra1+ {[%clk 0:00:11.2]} 34. Kg2 {[%clk
0:00:23.3]} 34... Ne3+ {[%clk 0:00:12.5]} 35. Kh3 {[%clk 0:00:23.4]} 35... Nxf5
{[%clk 0:00:14.4]} 0-1

[Event "*** Titled Tuesday Blitz"]
[Site "Chess.com"]
[Date "2019.11.05"]
[Round "8"]
[White "Kimster98"]
[Black "kinga2008"]
[Result "1-0"]
[WhiteElo "2550"]
[BlackElo "1966"]
[TimeControl "180+2"]
[EndTime "14:53:54 PST"]
[Termination "Kimster98 won on time"]

1. Nf3 {[%clk 0:02:11.6]} 1... d5 {[%clk 0:02:59.6]} 2. d4 {[%clk 0:02:12.3]}
2... g6 {[%clk 0:02:59.5]} 3. c4 {[%clk 0:02:13.1]} 3... Bg7 {[%clk 0:03:01.4]}
4. cxd5 {[%clk 0:02:13.8]} 4... Qxd5 {[%clk 0:03:02]} 5. Nc3 {[%clk 0:02:14.9]}
5... Qd8 {[%clk 0:03:03.6]} 6. e4 {[%clk 0:02:16]} 6... Bg4 {[%clk 0:03:04.3]}
7. Be3 {[%clk 0:02:14.2]} 7... e6 {[%clk 0:03:05.3]} 8. Be2 {[%clk 0:02:14]}
8... a6 {[%clk 0:03:01.5]} 9. O-O {[%clk 0:02:00.4]} 9... Nc6 {[%clk 0:02:57.6]}
10. d5 {[%clk 0:01:47.7]} 10... exd5 {[%clk 0:02:37.2]} 11. exd5 {[%clk
0:01:49.6]} 11... Nce7 {[%clk 0:02:34.2]} 12. Qb3 {[%clk 0:01:23]} 12... Qc8
{[%clk 0:02:02.4]} 13. h3 {[%clk 0:00:59.7]} 13... Bd7 {[%clk 0:01:56.5]} 14.
Ng5 {[%clk 0:00:47.8]} 14... h6 {[%clk 0:01:43.8]} 15. Nge4 {[%clk 0:00:41.7]}
15... Nf5 {[%clk 0:01:06.5]} 16. Bg4 {[%clk 0:00:27.9]} 16... Nge7 {[%clk
0:00:53.7]} 17. Nc5 {[%clk 0:00:25.3]} 17... O-O {[%clk 0:00:39.7]} 18. Qxb7
{[%clk 0:00:13.6]} 18... Qxb7 {[%clk 0:00:39.7]} 19. Nxb7 {[%clk 0:00:15.5]}
19... Nxe3 {[%clk 0:00:40.5]} 20. fxe3 {[%clk 0:00:15.4]} 20... Bxg4 {[%clk
0:00:41.9]} 21. hxg4 {[%clk 0:00:17.3]} 21... Rfb8 {[%clk 0:00:42.4]} 22. Nc5
{[%clk 0:00:16]} 22... Rxb2 {[%clk 0:00:43.7]} 23. Rac1 {[%clk 0:00:15.4]} 23...
Bxc3 {[%clk 0:00:34.2]} 24. Rxc3 {[%clk 0:00:17.3]} 24... Nxd5 {[%clk
0:00:35.8]} 25. Rd3 {[%clk 0:00:16.6]} 25... Nb6 {[%clk 0:00:17.7]} 26. a4
{[%clk 0:00:16.3]} 26... Rc2 {[%clk 0:00:12.2]} 27. Ne4 {[%clk 0:00:16.5]} 27...
Rc4 {[%clk 0:00:09.7]} 28. Nf6+ {[%clk 0:00:16.4]} 28... Kg7 {[%clk 0:00:10.7]}
29. a5 {[%clk 0:00:18]} 29... Na4 {[%clk 0:00:04.7]} 30. Rd7 {[%clk 0:00:18.9]}
30... Nc5 {[%clk 0:00:04]} 31. Rxc7 {[%clk 0:00:19.8]} 31... Rc3 {[%clk
0:00:02.9]} 32. Nd5 {[%clk 0:00:19.8]} 1-0

[Event "*** Titled Tuesday Blitz"]
[Site "Chess.com"]
[Date "2019.11.05"]
[Round "8"]
[White "GrandGlacier"]
[Black "przemekpiotrowski"]
[Result "1-0"]
[WhiteElo "2526"]
[BlackElo "2415"]
[TimeControl "180+2"]
[EndTime "14:54:04 PST"]
[Termination "GrandGlacier won by resignation"]

1. e4 {[%clk 0:03:01.9]} 1... c5 {[%clk 0:02:30.1]} 2. Nf3 {[%clk 0:03:02.7]}
2... d6 {[%clk 0:02:30]} 3. d4 {[%clk 0:03:04.1]} 3... cxd4 {[%clk 0:02:31.6]}
4. Nxd4 {[%clk 0:03:06]} 4... Nf6 {[%clk 0:02:32.6]} 5. Nc3 {[%clk 0:03:07.5]}
5... Nc6 {[%clk 0:02:34.2]} 6. Bg5 {[%clk 0:03:07.3]} 6... e6 {[%clk 0:02:35.3]}
7. Qd2 {[%clk 0:03:08.4]} 7... a6 {[%clk 0:02:36.3]} 8. O-O-O {[%clk 0:03:09.9]}
8... Bd7 {[%clk 0:02:37.3]} 9. f4 {[%clk 0:03:11.2]} 9... b5 {[%clk 0:02:38.6]}
10. Bxf6 {[%clk 0:03:12.2]} 10... gxf6 {[%clk 0:02:39]} 11. Nxc6 {[%clk
0:03:12.1]} 11... Bxc6 {[%clk 0:02:40.9]} 12. Qe3 {[%clk 0:03:12.9]} 12... Bh6
{[%clk 0:02:34.4]} 13. Kb1 {[%clk 0:03:10.3]} 13... Qc7 {[%clk 0:02:31]} 14. Nd5
{[%clk 0:03:09.6]} 14... Bxd5 {[%clk 0:02:31.9]} 15. exd5 {[%clk 0:03:09.8]}
15... e5 {[%clk 0:02:33.3]} 16. g3 {[%clk 0:03:07.3]} 16... O-O {[%clk
0:02:31.5]} 17. Bd3 {[%clk 0:03:07.7]} 17... f5 {[%clk 0:02:04]} 18. Bxf5 {[%clk
0:03:06.6]} 18... Rae8 {[%clk 0:02:05.1]} 19. Qd3 {[%clk 0:03:03.7]} 19... Kg7
{[%clk 0:01:52.5]} 20. Bxh7 {[%clk 0:02:57.3]} 20... Qc4 {[%clk 0:01:49.8]} 21.
Rdf1 {[%clk 0:02:28.9]} 21... e4 {[%clk 0:01:43.5]} 22. Qxc4 {[%clk 0:02:28.5]}
22... bxc4 {[%clk 0:01:45.4]} 23. Bf5 {[%clk 0:02:29.1]} 23... Kf6 {[%clk
0:00:59.2]} 24. g4 {[%clk 0:02:20.2]} 24... e3 {[%clk 0:00:56.2]} 25. Bd7 {[%clk
0:02:16.1]} 25... e2 {[%clk 0:00:43.2]} 26. g5+ {[%clk 0:02:16.5]} 26... Ke7
{[%clk 0:00:43.2]} 27. Bxe8 {[%clk 0:02:13.3]} 27... exf1=Q+ {[%clk 0:00:43.7]}
28. Rxf1 {[%clk 0:02:14.2]} 28... Kxe8 {[%clk 0:00:33.7]} 29. gxh6 {[%clk
0:02:08.7]} 29... Rh8 {[%clk 0:00:35.2]} 30. Re1+ {[%clk 0:02:02.3]} 30... Kd7
{[%clk 0:00:34.9]} 31. Re4 {[%clk 0:02:02.6]} 31... Rxh6 {[%clk 0:00:36.1]} 32.
Rxc4 {[%clk 0:02:03.6]} 32... Rxh2 {[%clk 0:00:37.4]} 33. b3 {[%clk 0:02:04.5]}
33... Rd2 {[%clk 0:00:37.3]} 34. Ra4 {[%clk 0:02:00.6]} 34... Rxd5 {[%clk
0:00:38.4]} 35. Rxa6 {[%clk 0:02:01.4]} 35... Ke6 {[%clk 0:00:35.9]} 36. Kc1
{[%clk 0:01:51.7]} 36... Kf5 {[%clk 0:00:35.8]} 37. Ra4 {[%clk 0:01:51.5]} 37...
f6 {[%clk 0:00:36.5]} 38. Rc4 {[%clk 0:01:50.1]} 38... Ra5 {[%clk 0:00:33.4]}
39. a4 {[%clk 0:01:48.3]} 39... d5 {[%clk 0:00:34.6]} 40. Rd4 {[%clk 0:01:47.5]}
40... Kg4 {[%clk 0:00:35.8]} 41. Kd2 {[%clk 0:01:45]} 41... Kf3 {[%clk
0:00:36.8]} 42. Kc3 {[%clk 0:01:45.7]} 42... Rc5+ {[%clk 0:00:37.5]} 43. Kd3
{[%clk 0:01:46.8]} 43... Ra5 {[%clk 0:00:36.3]} 44. Rb4 {[%clk 0:01:42.8]} 44...
Rc5 {[%clk 0:00:34.5]} 45. Rb5 {[%clk 0:01:41.9]} 45... Rc6 {[%clk 0:00:29.8]}
46. Rxd5 {[%clk 0:01:39.7]} 46... Kxf4 {[%clk 0:00:31.5]} 47. b4 {[%clk
0:01:40.4]} 47... Kg4 {[%clk 0:00:30.4]} 48. b5 {[%clk 0:01:41.2]} 48... Rc8
{[%clk 0:00:31.7]} 49. b6 {[%clk 0:01:41.9]} 49... f5 {[%clk 0:00:33.1]} 50. a5
{[%clk 0:01:42.8]} 50... f4 {[%clk 0:00:33.3]} 51. b7 {[%clk 0:01:43.6]} 51...
Rf8 {[%clk 0:00:30.7]} 52. a6 {[%clk 0:01:43.7]} 52... f3 {[%clk 0:00:32]} 53.
Rb5 {[%clk 0:01:37.6]} 53... Rd8+ {[%clk 0:00:26.1]} 54. Ke3 {[%clk 0:01:33.7]}
54... Re8+ {[%clk 0:00:23.7]} 55. Kf2 {[%clk 0:01:34.9]} 55... Re2+ {[%clk
0:00:24.2]} 56. Kf1 {[%clk 0:01:36.2]} 1-0